bitfinex/quotes_SOLUSD_20220227
["timestamp","ask_amount","ask_price","bid_price","bid_amount"]
[1645949439704,25.87871825,88.589,88.494,2.74831441]
[1645949439905,1.82456566,88.588,88.494,2.74831441]
[1645949440306,26.79648244,88.587,88.494,2.74831441]
[1645949440505,1.35295646,88.586,88.494,2.74831441]
[1645949444408,1.35295646,88.586,88.493,23.0262]
[1645949446610,4.09974567,88.586,88.493,23.0262]
[1645949446809,23.96681577,88.585,88.493,23.0262]
[1645949447009,114.2251414,88.579,88.491,1.492725]
[1645949447208,7.0,88.558,88.491,1.492725]
[1645949447409,1.74715762,88.559,88.491,1.492725]
[1645949447709,28.20817844,88.557,88.491,1.492725]
[1645949447910,1.76828274,88.556,88.491,1.492725]
[1645949448113,7.0,88.551,88.491,1.492725]
[1645949448513,16.9576,88.55,88.491,1.492725]
[1645949448713,1.44557698,88.549,88.491,1.492725]
[1645949448911,7.0,88.548,88.491,1.492725]
[1645949449516,24.4059,88.547,88.491,1.492725]
[1645949449716,8.36800961,88.546,88.491,1.492725]
[1645949450416,1.36800961,88.546,88.491,1.492725]
[1645949450618,7.0,88.541,88.491,1.492725]
[1645949451519,7.0,88.538,88.491,1.492725]
[1645949453118,1.36800961,88.546,88.491,1.492725]
[1645949454121,8.36800961,88.546,88.491,1.492725]
[1645949455524,1.36800961,88.546,88.491,1.492725]
[1645949455724,7.0,88.528,88.491,1.492725]
[1645949456330,1.86260936,88.526,88.4,16.9596]
[1645949456525,1.86260936,88.526,88.381,78.0361]
[1645949456526,1.42226217,88.525,88.424,45.74461993]
[1645949456725,4.521,88.524,88.409,49.1352]
[1645949456925,1.63666031,88.519,88.425,31.85288527]
[1645949457125,7.0,88.503,88.425,31.85288527]
[1645949457325,7.0,88.503,88.41,31.85288527]
[1645949457529,23.4318,88.502,88.41,31.85288527]
[1645949457725,37.28463036,88.501,88.411,50.87401833]
[1645949457925,1.65279013,88.5,88.411,50.87401833]
[1645949458125,1.65279013,88.5,88.412,31.85288527]
[1645949460626,7.0,88.493,88.411,50.87401833]
[1645949460827,1.65279013,88.5,88.411,50.87401833]
[1645949461032,47.6879614,88.482,88.472,0.27932424]
[1645949461249,1.35891965,88.481,88.472,0.27932424]
[1645949462727,47.6879614,88.482,88.472,0.27932424]
[1645949463326,1.61512523,88.495,88.472,0.27932424]
[1645949463528,1.7246018,88.509,88.472,0.27932424]
[1645949463727,7.0,88.513,88.472,0.27932424]
[1645949463927,1.58570462,88.522,88.472,0.27932424]
[1645949464230,1.72115128,88.522,88.472,0.27932424]
[1645949464530,1.73859206,88.52,88.472,0.27932424]
[1645949465128,31.40114116,88.52,88.472,0.27932424]
[1645949465327,1.8726997,88.519,88.472,0.27932424]
[1645949465727,31.5352488,88.519,88.472,0.27932424]
[1645949465927,1.47293756,88.518,88.472,0.27932424]
[1645949466328,48.77216653,88.521,88.472,0.27932424]
[1645949467135,29.6625491,88.52,88.472,0.27932424]
[1645949468531,48.77216653,88.521,88.472,0.27932424]
[1645949475444,47.9403,88.55,88.472,0.27932424]
[1645949475847,27.10848243,88.548,88.472,0.27932424]
[1645949476046,47.9403,88.55,88.472,0.27932424]
[1645949476259,49.55755306,88.564,88.472,0.27932424]
[1645949476460,57.99086421,88.563,88.472,0.27932424]
[1645949476659,57.99086421,88.563,88.472,2.94547116]
[1645949476860,57.99086421,88.563,88.474,112.4]
[1645949477061,57.99086421,88.563,88.475,2.82193086]
[1645949477860,85.09934664,88.563,88.475,2.82193086]
[1645949478761,2.74678921,88.562,88.475,2.82193086]
[1645949479159,85.09934664,88.563,88.475,2.82193086]
[1645949479359,27.10848243,88.562,88.475,2.82193086]
[1645949480159,1.54294376,88.561,88.475,2.82193086]
[1645949480361,4.28973297,88.561,88.475,2.82193086]
[1645949480560,29.85527164,88.56,88.475,2.82193086]
[1645949480760,1.43683001,88.559,88.473,47.0187]
[1645949480960,28.54531244,88.559,88.473,47.0187]
[1645949481161,1.54099678,88.558,88.473,47.0187]
[1645949481362,4.28778599,88.558,88.473,47.0187]
[1645949482462,11.28778599,88.558,88.473,47.0187]
[1645949482661,7.0,88.556,88.473,47.0187]
[1645949483062,1.57846625,88.554,88.473,47.0187]
[1645949483663,7.0,88.553,88.473,47.0187]
[1645949486066,27.10848243,88.552,88.473,47.0187]
[1645949486265,7.0,88.548,88.473,44.19364972]
[1645949486467,33.98172755,88.547,88.473,44.19364972]
[1645949486666,1.36536212,88.546,88.473,44.19364972]
[1645949487369,2.74678921,88.545,88.473,44.19364972]
[1645949488066,1.36536212,88.546,88.473,44.19364972]
[1645949488267,8.36536212,88.546,88.473,44.19364972]
[1645949489570,1.36536212,88.546,88.473,44.19364972]
[1645949489972,2.74678921,88.545,88.473,44.19364972]
[1645949490171,1.4941228,88.544,88.473,44.19364972]
[1645949490570,4.25199509,88.543,88.473,44.19364972]
[1645949490971,2.74678921,88.542,88.473,44.19364972]
[1645949491473,2.74678921,88.542,88.52,0.27932424]
[1645949491674,7.0,88.541,88.52,0.27932424]
[1645949492072,2.74678921,88.54,88.52,0.27932424]
[1645949494079,29.85527164,88.54,88.52,0.27932424]
[1645949495083,1.67570518,88.539,88.52,0.27932424]
[1645949495883,28.78418761,88.539,88.52,0.27932424]
[1645949496086,1.73200132,88.538,88.52,0.27932424]
[1645949496485,4.47879053,88.538,88.52,0.27932424]
[1645949496686,2.74678921,88.537,88.52,0.27932424]
[1645949502096,7.0,88.536,88.52,0.27932424]
[1645949502294,7.0,88.531,88.52,0.27932424]
[1645949502913,1.42942507,88.529,88.52,0.27932424]
[1645949505316,50.1788302,88.53,88.52,0.27932424]
[1645949506714,2.74678921,88.537,88.52,0.27932424]
[1645949506916,27.10848243,88.539,88.52,0.27932424]
[1645949507315,27.10848243,88.552,88.52,0.27932424]
[1645949507718,7.0,88.558,88.52,0.27932424]
[1645949507916,50.5629949,88.567,88.52,0.27932424]
[1645949508117,50.5629949,88.567,88.52,8.17932424]
[1645949510021,1.44087439,88.566,88.52,8.17932424]
[1645949510420,23.6487491,88.565,88.52,8.17932424]
[1645949510620,26.39553831,88.565,88.52,8.17932424]
[1645949510824,1.46574497,88.564,88.52,8.17932424]
[1645949511123,1.64653838,88.563,88.52,8.17932424]
[1645949511324,26.39553831,88.563,88.52,8.17932424]
[1645949511525,28.02674326,88.562,88.52,8.17932424]
[1645949511725,1.80580653,88.561,88.558,0.27932424]
[1645949511923,26.39553831,88.561,88.558,0.27932424]
[1645949512124,7.0,88.558,88.483,24.2439]
[1645949512523,1.56105143,88.559,88.483,24.2439]
[1645949512524,112.4,88.549,88.483,24.2439]
[1645949512723,112.4,88.539,88.483,24.2439]
[1645949513024,7.0,88.508,88.483,24.2439]
[1645949513525,1.83431537,88.506,88.483,24.2439]
[1645949513722,8.83431537,88.506,88.483,24.2439]
[1645949513923,22.83479942,88.505,88.483,24.2439]
[1645949514123,1.86563082,88.504,88.483,24.2439]
[1645949514326,50.5629949,88.503,88.483,24.2439]
[1645949514524,1.72009356,88.502,88.483,24.2439]
[1645949514925,7.0,88.498,88.483,24.2439]
[1645949515625,1.87353152,88.497,88.41,22.593]
[1645949515829,31.6335,88.496,88.41,24.88297366]
[1645949516026,24.6335,88.496,88.41,24.88297366]
[1645949516226,24.6335,88.496,88.411,50.79926873]
[1645949516428,24.6335,88.496,88.412,22.5663]
[1645949517528,33.06941577,88.495,88.412,22.5663]
[1645949519030,35.81620498,88.495,88.412,22.5663]
[1645949519231,1.71145492,88.494,88.412,22.5663]
[1645949519631,33.06941577,88.493,88.412,22.5663]
[1645949520232,33.06941577,88.493,88.412,22.0663]
[1645949521635,33.06941577,88.493,88.413,3.10732668]
[1645949521836,24.6335,88.496,88.413,3.10732668]
[1645949522036,24.6335,88.496,88.413,7.62932668]
[1645949522737,33.06941577,88.495,88.413,7.62932668]
[1645949523037,33.06941577,88.495,88.413,3.10732668]
[1645949524139,24.6335,88.496,88.42,16.2]
[1645949524340,24.9817,88.501,88.421,2.3850091]
[1645949525140,24.9817,88.501,88.422,23.6926]
[1645949525341,23.8859,88.522,88.423,2.40251455]
[1645949525739,23.8859,88.522,88.423,114.80251455]
[1645949525943,30.6787,88.536,88.427,112.4]
[1645949526141,23.6787,88.536,88.441,115.48443846]
[1645949526340,24.3052,88.549,88.444,2.35358235]
[1645949526739,24.3052,88.549,88.446,112.4]
[1645949526942,47.77309209,88.548,88.461,59.15386099]
[1645949527141,47.77309209,88.548,88.462,114.97253029]
[1645949527340,47.77309209,88.548,88.463,2.29453644]
[1645949536174,27.23355909,88.553,88.463,2.29453644]
[1645949536375,27.23355909,88.553,88.464,2.74678921]
[1645949536975,27.23355909,88.553,88.463,2.29453644]
[1645949537174,27.23355909,88.57,88.463,2.29453644]
[1645949537374,27.23355909,88.57,88.461,56.67323108]
[1645949537375,27.23355909,88.57,88.466,2.90647624]
[1645949537577,27.23355909,88.57,88.481,112.4]
[1645949537775,27.23355909,88.57,88.482,54.46026554]
[1645949538075,27.23355909,88.57,88.483,2.46160222]
[1645949538275,27.23355909,88.57,88.484,22.8258]
[1645949538477,27.23355909,88.57,88.485,2.28890259]
[1645949538879,21.92560397,88.569,88.485,2.28890259]
[1645949539276,27.23355909,88.568,88.485,2.28890259]
[1645949541184,21.92560397,88.567,88.485,2.28890259]
[1645949541480,1.59813707,88.566,88.484,22.8258]
[1645949541682,28.83169616,88.566,88.484,22.8258]
[1645949541979,1.64493023,88.564,88.484,22.8258]
[1645949542379,49.15916306,88.565,88.485,2.4237624]
[1645949542979,27.23355909,88.564,88.485,2.4237624]
[1645949545884,49.15916306,88.564,88.485,2.4237624]
[1645949546286,27.23355909,88.563,88.485,2.4237624]
[1645949547486,27.23355909,88.563,88.485,114.8237624]
[1645949547886,112.2,88.581,88.486,5.39748095]
[1645949548087,7.0,88.588,88.501,112.4]
[1645949548286,1.64139226,88.606,88.504,3.05801482]
[1645949548686,50.42274058,88.605,88.505,60.40960964]
[1645949548889,1.78301396,88.604,88.507,2.7248489]
[1645949549086,1.49618288,88.602,88.51,128.6]
[1645949549287,1.49618288,88.602,88.51,131.14181621]
[1645949549685,1.49618288,88.602,88.511,24.3388]
[1645949550185,1.49618288,88.602,88.512,112.4]
[1645949550386,1.49618288,88.602,88.513,2.56673226]
[1645949550587,1.49618288,88.602,88.513,5.31352147]
[1645949550787,1.36512951,88.6,88.513,5.31352147]
[1645949550986,1.36512951,88.6,88.514,24.3165]
[1645949551189,26.33235527,88.6,88.514,24.3165]
[1645949551392,1.51840064,88.599,88.514,24.3165]
[1645949551591,1.51840064,88.599,88.515,2.74678921]
[1645949553487,1.51840064,88.599,88.515,115.14678921]
[1645949553688,1.51840064,88.599,88.521,112.4]
[1645949553888,1.51840064,88.599,88.523,112.4]
[1645949554287,1.51840064,88.599,88.522,48.95740673]
[1645949554489,1.51840064,88.599,88.524,2.74678921]
[1645949554688,1.51840064,88.599,88.525,22.909]
[1645949555088,1.51840064,88.599,88.526,2.74678921]
[1645949556789,1.51840064,88.599,88.525,22.909]
[1645949556992,1.66332858,88.598,88.525,22.909]
[1645949557191,26.33572176,88.598,88.525,22.909]
[1645949557391,1.43513748,88.596,88.525,22.909]
[1645949557594,7.0,88.591,88.525,22.909]
[1645949557791,2.39662694,88.59,88.525,22.909]
[1645949557993,30.11064191,88.59,88.525,22.909]
[1645949558198,7.0,88.578,88.525,22.909]
[1645949558595,1.61277261,88.588,88.525,22.909]
[1645949558895,8.61277261,88.588,88.526,52.35993009]
[1645949560096,1.61277261,88.588,88.526,52.35993009]
[1645949566623,1.61277261,88.588,88.526,51.85993009]
[1645949569524,1.87390157,88.587,88.526,51.85993009]
[1645949573238,7.0,88.571,88.526,51.85993009]
[1645949573637,1.87390157,88.587,88.526,51.85993009]
[1645949574239,7.0,88.576,88.526,51.85993009]
[1645949575639,24.5485,88.589,88.526,51.85993009]
[1645949578340,1.50760693,88.588,88.526,51.85993009]
[1645949578540,1.50760693,88.588,88.511,24.3388]
[1645949578742,29.2216219,88.588,88.511,24.3388]
[1645949578941,29.49046635,88.587,88.511,24.3388]
[1645949579142,1.36661908,88.586,88.511,24.3388]
[1645949579344,29.08063405,88.586,88.511,24.3388]
[1645949579545,26.33074698,88.585,88.512,54.05026433]
[1645949579742,10.86455177,88.584,88.512,54.05026433]
[1645949579943,7.0,88.581,88.512,54.05026433]
[1645949580445,7.0,88.578,88.512,54.05026433]
[1645949580645,1.77655627,88.576,88.512,54.05026433]
[1645949582347,1.77655627,88.576,88.513,24.688]
[1645949583248,24.2539,88.577,88.513,24.688]
[1645949588153,70.71091127,88.598,88.514,112.4]
[1645949588452,24.3906,88.597,88.514,112.4]
[1645949589653,2.74678921,88.596,88.514,112.4]
[1645949590054,24.3906,88.597,88.514,112.4]
[1645949590255,24.3906,88.597,88.513,24.688]
[1645949590454,1.73846899,88.596,88.513,24.688]
[1645949591554,1.6617728,88.596,88.513,24.688]
[1645949591955,49.12382576,88.597,88.513,24.688]
[1645949592155,7.0,88.593,88.513,24.688]
[1645949592358,1.80857679,88.596,88.513,24.688]
[1645949592757,2.74678921,88.595,88.513,24.688]
[1645949593756,1.80857679,88.596,88.513,24.688]
[1645949595159,1.80857679,88.596,88.514,112.4]
[1645949595360,26.54180255,88.596,88.514,112.4]
[1645949595560,1.36311184,88.595,88.514,112.4]
[1645949596976,24.73322576,88.596,88.514,112.4]
[1645949597178,24.73322576,88.594,88.514,112.4]
[1645949597376,1.74879605,88.593,88.514,112.4]
[1645949597578,1.74879605,88.593,88.513,24.688]
[1645949598879,24.73322576,88.594,88.514,112.4]
[1645949599078,24.3906,88.597,88.514,112.4]
[1645949599778,24.3906,88.597,88.514,117.76]
[1645949600480,24.3906,88.597,88.515,2.51523422]
[1645949600682,24.3906,88.597,88.531,112.4]
[1645949600883,24.3906,88.597,88.533,112.4]
[1645949601480,24.3906,88.597,88.535,112.4]
[1645949601681,24.3906,88.597,88.534,58.26510072]
[1645949602785,24.3906,88.597,88.535,112.4]
[1645949603185,1.38215106,88.615,88.535,112.4]
[1645949610190,14.94482459,88.614,88.535,112.4]
[1645949610391,1.53621748,88.613,88.535,112.4]
[1645949614496,1.53621748,88.613,88.534,58.26510072]
[1645949615494,2.74678921,88.612,88.534,58.26510072]
[1645949615697,4.55724532,88.612,88.532,24.6475]
[1645949615899,66.40449579,88.611,88.532,24.6475]
[1645949616097,1.63289154,88.61,88.532,24.6475]
[1645949616296,44.29220338,88.61,88.532,24.6475]
[1645949616496,41.31849959,88.609,88.532,24.6475]
[1645949616699,1.79087134,88.608,88.532,24.6475]
[1645949616897,51.45018318,88.608,88.532,24.6475]
[1645949617097,26.16993413,88.607,88.532,24.6475]
[1645949617296,1.83754713,88.606,88.532,24.6475]
[1645949617497,41.75006976,88.606,88.532,24.6475]
[1645949617698,1.84380365,88.605,88.532,24.6475]
[1645949618500,26.22992941,88.605,88.532,24.6475]
[1645949618697,1.59341232,88.604,88.532,24.6475]
[1645949619297,2.74678921,88.603,88.532,24.6475]
[1645949620302,1.59341232,88.604,88.532,24.6475]
[1645949620500,1.59341232,88.604,88.533,112.4]
[1645949622520,24.5947,88.607,88.533,112.4]
[1645949627104,24.5947,88.607,88.532,41.829]
[1645949627105,1.60388255,88.63,88.535,112.4]
[1645949627305,23.7076,88.641,88.535,112.4]
[1645949627507,49.60804122,88.636,88.537,112.4]
[1645949627806,49.60804122,88.636,88.553,112.4]
[1645949627807,1.8325379,88.635,88.553,112.4]
[1645949628005,1.8325379,88.635,88.555,112.4]
[1645949628204,1.8325379,88.635,88.57,16.2]
[1645949628404,1.8325379,88.635,88.571,82.46644342]
[1645949629004,1.40252327,88.64,88.571,82.46644342]
[1645949632329,23.7076,88.641,88.572,112.4]
[1645949632729,23.7076,88.641,88.573,2.74678921]
[1645949638036,1.61627847,88.64,88.573,2.74678921]
[1645949638236,1.61627847,88.64,88.571,82.46644342]
[1645949640539,1.61627847,88.64,88.571,23.4498]
[1645949648853,1.61627847,88.64,88.572,112.4]
[1645949649352,23.7076,88.641,88.573,4.514]
[1645949649557,23.7076,88.641,88.572,116.914]
[1645949651655,23.7076,88.641,88.572,112.4]
[1645949653461,23.7076,88.641,88.573,4.514]
[1645949653659,23.7076,88.641,88.574,112.4]
[1645949653867,23.7076,88.641,88.575,4.514]
[1645949654059,23.7076,88.641,88.591,57.59139062]
[1645949654261,23.7076,88.641,88.592,24.0897]
[1645949659681,23.7076,88.641,88.592,41.289]
[1645949665490,23.7076,88.641,88.592,24.0897]
[1645949666293,1.41649945,88.64,88.572,24.9011]
[1645949670094,1.41649945,88.64,88.55,16.2]
[1645949670294,24.37745909,88.639,88.547,2.74678921]
[1645949670495,1.85726482,88.638,88.547,2.74678921]
[1645949670895,24.37745909,88.637,88.552,47.15301626]
[1645949671094,1.37818011,88.636,88.553,24.4703]
[1645949671298,4.514,88.635,88.553,24.4703]
[1645949671496,30.69890962,88.635,88.553,24.4703]
[1645949671695,25.96926489,88.634,88.553,24.4703]
[1645949671899,7.0,88.628,88.553,24.4703]
[1645949672094,1.42670086,88.632,88.553,24.4703]
[1645949672495,25.80415995,88.632,88.553,24.4703]
[1645949672695,1.78619386,88.63,88.553,24.4703]
[1645949672897,46.10471928,88.629,88.554,52.93815131]
[1645949673097,1.53859274,88.628,88.53,16.2]
[1645949673400,1.53859274,88.628,88.48,56.4747]
[1645949673401,7.0,88.623,88.531,22.88]
[1645949673599,6.02054196,88.622,88.531,22.88]
[1645949674100,7.21464824,88.615,88.532,55.37747274]
[1645949674301,7.0,88.611,88.532,55.37747274]
[1645949674498,7.0,88.606,88.532,55.37747274]
[1645949675297,7.0,88.603,88.532,55.37747274]
[1645949675700,22.7716,88.602,88.532,55.37747274]
[1645949675900,39.28709801,88.601,88.532,55.37747274]
[1645949676098,1.55329205,88.6,88.532,55.37747274]
[1645949677498,1.55329205,88.6,88.533,115.14678921]
[1645949677698,1.55329205,88.6,88.533,119.66278921]
[1645949677998,1.55329205,88.6,88.534,2.74678921]
[1645949678198,1.55329205,88.6,88.535,4.516]
[1645949678600,1.64497925,88.617,88.536,2.74678921]
[1645949678800,1.64497925,88.617,88.54,16.2]
[1645949679000,1.64497925,88.617,88.541,4.515]
[1645949679200,1.64497925,88.617,88.541,7.26178921]
[1645949679400,1.64497925,88.617,88.541,29.15494844]
[1645949679600,1.64497925,88.617,88.542,26.00648921]
[1645949679801,1.64497925,88.617,88.543,4.515]
[1645949680001,1.64497925,88.617,88.543,7.26178921]
[1645949680201,1.64497925,88.617,88.543,4.515]
[1645949680400,1.64497925,88.617,88.544,2.74678921]
[1645949680602,22.8357,88.618,88.545,116.915]
[1645949680803,22.8357,88.618,88.56,16.2]
[1645949681004,22.8357,88.618,88.561,23.2706]
[1645949681209,1.52777668,88.655,88.562,112.4]
[1645949681401,1.52777668,88.655,88.563,4.514]
[1645949681601,1.52777668,88.655,88.564,112.65]
[1645949681802,1.52777668,88.655,88.571,112.4]
[1645949682008,1.52777668,88.655,88.564,2.99678921]
[1645949682009,1.52777668,88.655,88.581,112.4]
[1645949682201,1.52777668,88.655,88.59,16.2]
[1645949682522,1.52777668,88.655,88.591,4.513]
[1645949682902,1.52777668,88.655,88.592,66.28056109]
[1645949683103,1.52777668,88.655,88.593,4.513]
[1645949683507,1.52777668,88.655,88.593,7.25978921]
[1645949684104,1.52777668,88.655,88.593,4.513]
[1645949684803,1.52777668,88.655,88.592,66.28056109]
[1645949685002,1.52777668,88.655,88.593,4.513]
[1645949685204,1.52777668,88.655,88.592,66.28056109]
[1645949685605,1.52777668,88.655,88.593,4.513]
[1645949686504,23.6696,88.656,88.593,116.913]
[1645949687307,1.53143736,88.68,88.601,112.4]
[1645949687507,24.0372,88.679,88.611,112.4]
[1645949687707,24.0372,88.679,88.62,16.2]
[1645949688506,24.0372,88.679,88.621,24.3408]
[1645949689307,24.0372,88.679,88.621,28.8518]
[1645949691513,33.95874793,88.679,88.621,28.8518]
[1645949692113,24.0372,88.679,88.621,28.8518]
[1645949692514,1.61383427,88.678,88.621,28.8518]
[1645949693117,24.0372,88.679,88.621,24.3408]
[1645949694017,24.0372,88.679,88.622,4.511]
[1645949694317,24.0372,88.679,88.621,24.3408]
[1645949694717,24.0372,88.679,88.622,4.511]
[1645949695017,1.67486388,88.678,88.622,4.511]
[1645949695223,1.67486388,88.678,88.612,49.10429807]
[1645949695623,1.67486388,88.678,88.59,16.2]
[1645949695824,1.67486388,88.678,88.591,27.602]
[1645949696225,1.67486388,88.678,88.591,23.09]
[1645949696428,6.18586388,88.678,88.591,23.09]
[1645949696625,1.67486388,88.678,88.592,57.96444488]
[1645949696825,6.18586388,88.678,88.592,57.96444488]
[1645949697639,1.67486388,88.678,88.592,57.96444488]
[1645949704246,6.18586388,88.678,88.592,57.96444488]
[1645949704445,8.67486388,88.678,88.592,57.96444488]
[1645949704644,7.0,88.673,88.59,16.2]
[1645949704844,4.511,88.677,88.585,4.511]
[1645949704845,2.74678921,88.677,88.585,4.511]
[1645949705045,7.0,88.666,88.585,4.511]
[1645949705445,2.74678921,88.665,88.585,4.511]
[1645949705645,7.0,88.658,88.586,43.69254305]
[1645949706045,1.47338012,88.663,88.586,43.69254305]
[1645949706245,1.47338012,88.663,88.587,22.9878]
[1645949709647,1.47338012,88.663,88.587,25.73458921]
[1645949710049,23.1366,88.664,88.59,16.2]
[1645949710251,23.1366,88.664,88.591,112.4]
[1645949710448,23.1366,88.664,88.591,115.14678921]
[1645949710653,23.1366,88.664,88.592,2.74678921]
[1645949719353,1.73525191,88.663,88.592,2.74678921]
[1645949725959,23.1366,88.664,88.592,2.74678921]
[1645949730766,23.1366,88.664,88.592,2.7117527]
[1645949730965,23.1366,88.664,88.593,7.25978921]
[1645949731366,23.1366,88.664,88.593,4.513]
[1645949731664,4.513,88.69,88.594,2.74678921]
[1645949731665,1.77339879,88.689,88.594,2.74678921]
[1645949731865,23.6256,88.679,88.595,4.511]
[1645949732067,23.6256,88.679,88.596,2.54432074]
[1645949732265,23.6256,88.679,88.61,16.2]
[1645949732866,23.6256,88.679,88.611,2.74678921]
[1645949733065,23.6256,88.679,88.612,24.9088]
[1645949733268,23.6256,88.679,88.613,45.87839547]
[1645949733467,23.6256,88.679,88.613,48.62518468]
[1645949733665,23.6256,88.679,88.614,2.74678921]
[1645949734268,23.6256,88.679,88.614,115.14678921]
[1645949734467,23.6256,88.679,88.614,2.74678921]
[1645949734669,23.6256,88.679,88.615,2.74678921]
[1645949738994,1.47036873,88.678,88.615,2.74678921]
[1645949739294,1.47036873,88.678,88.613,45.87839547]
[1645949739494,4.21715794,88.678,88.613,45.87839547]
[1645949742196,1.47036873,88.678,88.613,45.87839547]
[1645949745603,2.74678921,88.677,88.613,45.87839547]
[1645949746202,1.47036873,88.678,88.613,45.87839547]
[1645949751505,1.5661178,88.678,88.613,45.87839547]
[1645949751706,1.42012654,88.678,88.614,2.74678921]
[1645949752907,1.39295079,88.678,88.614,2.74678921]
[1645949753106,1.39295079,88.678,88.613,45.87839547]
[1645949754108,1.39295079,88.678,88.612,24.9088]
[1645949755110,1.39295079,88.678,88.613,52.65282332]
[1645949755510,1.39295079,88.678,88.612,24.9088]
[1645949756612,1.39295079,88.678,88.613,47.93520363]
[1645949767622,2.74678921,88.677,88.59,16.2]
[1645949767821,4.511,88.676,88.59,16.2]
[1645949768222,2.74678921,88.675,88.59,16.2]
[1645949768623,4.28000299,88.675,88.595,55.34354036]
[1645949768823,1.62882282,88.674,88.595,55.34354036]
[1645949769023,7.0,88.671,88.595,55.34354036]
[1645949769226,24.69156654,88.673,88.595,55.34354036]
[1645949769423,24.69156654,88.673,88.57,16.2]
[1645949769424,7.0,88.666,88.57,16.2]
[1645949769627,21.94477733,88.67,88.564,24.0902]
[1645949769628,1.68997311,88.669,88.564,24.0902]
[1645949769828,7.0,88.661,88.564,24.0902]
[1645949770226,48.33279778,88.66,88.564,24.0902]
[1645949770426,4.16001453,88.659,88.564,24.0902]
[1645949770625,4.514,88.658,88.564,24.0902]
[1645949770825,45.94240606,88.658,88.564,24.0902]
[1645949771025,7.0,88.646,88.564,24.0902]
[1645949771224,1.57463234,88.644,88.564,24.0902]
[1645949771427,4.514,88.643,88.564,24.0902]
[1645949771830,7.26078921,88.643,88.564,24.0902]
[1645949772029,2.74678921,88.642,88.564,24.0902]
[1645949772228,16.9415,88.64,88.54,16.2]
[1645949772429,4.514,88.641,88.538,22.9341]
[1645949772430,5.88733682,88.639,88.538,22.9341]
[1645949772652,8.63412603,88.639,88.539,31.81550919]
[1645949772853,19.91509947,88.638,88.539,31.81550919]
[1645949773052,6.30446725,88.637,88.539,31.81550919]
[1645949773253,48.65941401,88.637,88.534,46.3519016]
[1645949773453,16.9433,88.63,88.534,46.3519016]
[1645949773656,7.0,88.626,88.52,16.2]
[1645949773853,7.0,88.618,88.52,16.2]
[1645949774055,22.5038,88.617,88.521,31.81885884]
[1645949774253,7.0,88.611,88.521,31.81885884]
[1645949774556,7.0,88.608,88.522,51.78796944]
[1645949774754,7.0,88.608,88.52,16.2]
[1645949774956,16.949,88.6,88.492,24.7946]
[1645949775255,8.5028996,88.598,88.492,24.7946]
[1645949775754,1.43391752,88.596,88.493,31.82566883]
[1645949775954,4.517,88.595,88.494,53.41131342]
[1645949776155,1.54695991,88.594,88.494,53.41131342]
[1645949776454,16.9523,88.58,88.493,31.82566883]
[1645949776654,1.76752587,88.578,88.495,31.82566883]
[1645949776855,4.517,88.577,88.481,22.6065]
[1645949777054,1.6367219,88.576,88.481,22.6065]
[1645949777256,4.518,88.575,88.482,31.82913695]
[1645949777554,1.50053889,88.573,88.482,89.05724309]
[1645949777956,2.74678921,88.572,88.482,57.22810614]
[1645949778355,4.518,88.571,88.482,57.22810614]
[1645949778553,7.0,88.566,88.482,57.22810614]
[1645949778954,7.0,88.561,88.482,57.22810614]
[1645949780054,9.06401636,88.56,88.482,57.22810614]
[1645949780456,2.74678921,88.559,88.482,57.22810614]
[1645949780658,4.518,88.558,88.482,57.22810614]
[1645949780857,1.6655749,88.557,88.454,24.4942]
[1645949781057,11.519,88.556,88.454,24.4942]
[1645949781259,1.67855968,88.555,88.454,24.4942]
[1645949781459,4.519,88.554,88.454,24.4942]
[1645949781659,1.4512981,88.553,88.454,24.4942]
[1645949781859,7.0,88.541,88.455,50.73792132]
[1645949782160,38.31071878,88.539,88.455,50.73792132]
[1645949782363,1.45663276,88.538,88.455,50.73792132]
[1645949782760,1.45663276,88.538,88.454,24.4942]
[1645949783060,1.45663276,88.538,88.431,26.79878921]
[1645949783061,7.26578921,88.537,88.431,26.79878921]
[1645949783260,24.7708,88.536,88.432,23.4241]
[1645949783460,7.0,88.531,88.432,23.4241]